bitfinex/quotes_BTCUSD_20250904
["timestamp","ask_amount","ask_price","bid_price","bid_amount"]
[1757019999301,0.00112269,110640.0,110630.0,1.7536879]
[1757020002208,0.00112269,110640.0,110630.0,1.6030079]
[1757020002395,0.00112269,110640.0,110630.0,1.7536479]
[1757020009516,0.00112269,110640.0,110630.0,2.12481083]
[1757020010865,0.00144917,110650.0,110640.0,0.99403112]
[1757020011071,0.00144917,110650.0,110640.0,1.23658711]
[1757020011275,0.00144917,110650.0,110640.0,1.24186711]
[1757020011482,0.00144917,110650.0,110640.0,0.8743264]
[1757020011658,0.00144917,110650.0,110640.0,1.2743264]
[1757020012166,0.00153387,110650.0,110640.0,1.2743264]
[1757020012581,0.00153387,110650.0,110640.0,1.64948933]
[1757020013480,0.00153387,110650.0,110640.0,1.65148933]
[1757020014133,0.00153387,110650.0,110640.0,1.54097197]
[1757020014351,0.00153387,110650.0,110640.0,1.32044904]
[1757020015450,0.00153387,110650.0,110640.0,1.69161197]
[1757020015665,0.00153387,110650.0,110640.0,1.54097197]
[1757020016106,0.00153387,110650.0,110640.0,1.69161197]
[1757020016531,0.00153387,110650.0,110640.0,1.32044904]
[1757020016729,0.00153387,110650.0,110640.0,1.16980904]
[1757020016939,0.00153387,110650.0,110640.0,1.32044904]
[1757020018704,0.00153387,110650.0,110640.0,1.16980904]
[1757020018913,0.00153387,110650.0,110640.0,1.32044904]
[1757020021899,0.00153387,110650.0,110640.0,1.16980904]
[1757020022138,0.00153387,110650.0,110640.0,1.32044904]
[1757020024265,0.00153387,110650.0,110640.0,1.52860904]
[1757020028582,0.00153387,110650.0,110640.0,1.37796904]
[1757020028775,0.00153387,110650.0,110640.0,1.52860904]
[1757020033069,0.00153387,110650.0,110640.0,1.52856904]
[1757020036227,0.00153387,110650.0,110640.0,1.15740611]
[1757020036433,0.00153387,110650.0,110640.0,1.52856904]
[1757020038683,0.00153387,110650.0,110640.0,1.59516904]
[1757020045624,0.00153387,110650.0,110640.0,1.96601183]
[1757020051939,0.00153387,110650.0,110640.0,1.81541183]
[1757020052117,0.00153387,110650.0,110640.0,1.96601183]
[1757020054077,0.00153387,110650.0,110640.0,1.93500897]
[1757020057387,0.00153387,110650.0,110640.0,1.59500897]
[1757020058462,0.00153387,110650.0,110640.0,1.22400611]
[1757020058705,0.00153387,110650.0,110640.0,1.59500897]
[1757020062999,0.00153387,110650.0,110640.0,1.22400611]
[1757020063210,0.00153387,110650.0,110640.0,1.96601183]
[1757020064118,0.00153387,110650.0,110640.0,0.99718729]
[1757020064327,0.00153387,110650.0,110640.0,1.11512793]
[1757020064555,0.00153387,110650.0,110640.0,1.11830793]
[1757020067448,0.00153387,110650.0,110640.0,0.74730507]
[1757020067616,0.00153387,110650.0,110640.0,1.11512793]
[1757020067882,0.00153387,110650.0,110640.0,1.11830793]
[1757020068286,0.00153387,110650.0,110640.0,1.51830793]
[1757020068462,0.00153387,110650.0,110640.0,1.52036793]
[1757020072354,0.00153387,110650.0,110640.0,1.89137079]
[1757020073178,0.00153387,110650.0,110640.0,1.49137079]
[1757020073718,0.00153387,110650.0,110640.0,1.89137079]
[1757020074910,0.00153387,110650.0,110640.0,1.49137079]
[1757020075343,0.00153387,110650.0,110640.0,1.89137079]
[1757020076189,0.00153387,110650.0,110640.0,1.49137079]
[1757020076713,0.00153387,110650.0,110640.0,1.34081079]
[1757020077015,0.00153387,110650.0,110640.0,1.49137079]
[1757020080215,0.00153387,110650.0,110640.0,1.89137079]
[1757020084704,0.00153387,110650.0,110640.0,1.49137079]
[1757020085135,0.00153387,110650.0,110640.0,1.89137079]
[1757020087692,0.00153387,110650.0,110640.0,1.68321079]
[1757020089790,0.00153387,110650.0,110640.0,1.28321079]
[1757020090282,0.00153387,110650.0,110640.0,1.68321079]
[1757020100249,0.00153387,110650.0,110640.0,1.28321079]
[1757020100648,0.00153387,110650.0,110640.0,1.68321079]
[1757020101608,0.02870292,110650.0,110640.0,1.68321079]
[1757020107681,0.02870292,110650.0,110640.0,1.31224886]
[1757020107911,0.02870292,110650.0,110640.0,1.31220886]
[1757020108340,0.02370292,110650.0,110640.0,1.31220886]
[1757020109536,0.02370292,110650.0,110640.0,1.16168886]
[1757020109685,0.02370292,110650.0,110640.0,1.31220886]
[1757020111726,0.02370292,110650.0,110640.0,1.16168886]
[1757020111916,0.02370292,110650.0,110640.0,1.31220886]
[1757020119778,0.02370292,110650.0,110640.0,1.52036886]
[1757020120182,0.02370292,110650.0,110640.0,1.36984886]
[1757020120459,0.02370292,110650.0,110640.0,0.99880507]
[1757020120670,0.02370292,110650.0,110640.0,1.52032886]
[1757020121800,0.02370292,110650.0,110640.0,1.36984886]
[1757020122006,0.02370292,110650.0,110640.0,0.59880507]
[1757020122184,0.02370292,110650.0,110640.0,1.12032886]
[1757020124638,0.02370292,110650.0,110640.0,0.91216886]
[1757020124813,0.02370292,110650.0,110640.0,0.54112507]
[1757020125026,0.02370292,110650.0,110640.0,0.91216886]
[1757020126035,0.02370292,110650.0,110640.0,0.94112507]
[1757020126250,0.02370292,110650.0,110640.0,1.31216886]
[1757020126590,0.02370292,110650.0,110640.0,0.94112507]
[1757020126953,0.02370292,110650.0,110640.0,1.31216886]
[1757020133286,0.02370292,110650.0,110640.0,0.94112507]
[1757020133510,0.02370292,110650.0,110640.0,0.38540507]
[1757020133741,0.39474671,110650.0,110640.0,0.53588507]
[1757020133954,0.02370292,110650.0,110640.0,0.53588507]
[1757020134161,0.02370292,110650.0,110640.0,0.54114507]
[1757020134778,0.02370292,110650.0,110640.0,0.53908507]
[1757020135128,0.03255848,110650.0,110640.0,0.53588507]
[1757020135525,0.03255848,110650.0,110640.0,0.53908507]
[1757020137027,0.03255848,110650.0,110640.0,0.54114507]
[1757020139493,0.02370292,110650.0,110640.0,0.54114507]
[1757020153504,0.02370292,110650.0,110640.0,0.54110507]
[1757020164257,0.02370292,110650.0,110640.0,0.91214886]
[1757020169605,0.02370292,110650.0,110640.0,1.28327887]
[1757020175127,0.02370292,110650.0,110640.0,0.91219197]
[1757020178350,0.02370292,110650.0,110640.0,1.25219197]
[1757020181441,0.02370292,110650.0,110640.0,0.88110507]
[1757020181642,0.02370292,110650.0,110640.0,1.25219197]
[1757020182916,0.02370292,110650.0,110640.0,1.62327887]
[1757020191327,0.02370292,110650.0,110640.0,0.88110507]
[1757020191522,0.02370292,110650.0,110640.0,1.62327887]
[1757020192159,0.02370292,110650.0,110640.0,0.73066507]
[1757020192409,0.02370292,110650.0,110640.0,1.25215197]
[1757020193796,0.39478982,110650.0,110640.0,0.34848243]
[1757020194018,0.39478982,110650.0,110640.0,0.49568243]
[1757020194235,0.39478982,110650.0,110640.0,0.49874243]
[1757020194442,0.02370292,110650.0,110640.0,0.49874243]
[1757020194616,0.02524515,110650.0,110640.0,0.49874243]
[1757020194794,0.57708216,110650.0,110640.0,0.49870243]
[1757020195012,0.57553993,110650.0,110640.0,0.49870243]
[1757020195428,0.57553993,110650.0,110640.0,0.49670243]
[1757020195839,0.57553993,110650.0,110640.0,0.49770243]
[1757020196295,0.57553993,110650.0,110640.0,0.49670243]
[1757020196497,0.57553993,110650.0,110640.0,0.49270243]
[1757020196701,0.57553993,110650.0,110640.0,0.49570243]
[1757020197405,0.57553993,110650.0,110640.0,0.49370243]
[1757020198208,0.57553993,110650.0,110640.0,0.49570243]
[1757020201066,0.20445303,110650.0,110640.0,0.49570243]
[1757020201264,0.57553993,110650.0,110640.0,0.49570243]
[1757020201644,0.57553993,110650.0,110640.0,0.49771243]
[1757020201987,0.57553993,110650.0,110640.0,0.34735243]
[1757020202190,0.57553993,110650.0,110640.0,0.49771243]
[1757020210178,0.57553993,110650.0,110640.0,0.31694599]
[1757020210730,0.57553993,110650.0,110640.0,0.49771243]
[1757020218654,0.57553993,110650.0,110640.0,0.31694599]
[1757020219379,0.57553993,110650.0,110640.0,0.49771243]
[1757020224130,0.57553993,110650.0,110640.0,0.49767243]
[1757020229608,0.57563583,110650.0,110640.0,0.49767243]
[1757020232534,0.20445303,110650.0,110640.0,0.49767243]
[1757020232735,0.57563583,110650.0,110640.0,0.49767243]
[1757020236438,0.20445303,110650.0,110640.0,0.49767243]
[1757020236649,0.57563583,110650.0,110640.0,0.49767243]
[1757020236853,0.57563583,110650.0,110640.0,0.34735243]
[1757020237040,0.57563583,110650.0,110640.0,0.49767243]
[1757020242826,0.20445303,110650.0,110640.0,0.49767243]
[1757020243044,0.57563583,110650.0,110640.0,0.49767243]
[1757020244391,0.02370292,110650.0,110640.0,0.49767243]
[1757020251936,0.02370292,110650.0,110640.0,0.49763243]
[1757020258255,0.02370292,110650.0,110640.0,0.34735243]
[1757020258407,0.02370292,110650.0,110640.0,0.49763243]
[1757020259574,0.02370292,110650.0,110640.0,0.34735243]
[1757020259775,0.02370292,110650.0,110640.0,0.49763243]
[1757020260112,0.02370292,110650.0,110640.0,0.34735243]
[1757020260304,0.39488572,110650.0,110640.0,0.49763243]
[1757020261390,0.02370292,110650.0,110640.0,0.49763243]
[1757020261661,0.39488572,110650.0,110640.0,0.49763243]
[1757020263510,0.02370292,110650.0,110640.0,0.49763243]
[1757020263716,0.39488572,110650.0,110640.0,0.49763243]
[1757020268594,0.02370292,110650.0,110640.0,0.49763243]
[1757020268795,0.39488572,110650.0,110640.0,0.49763243]
[1757020273025,0.02370292,110650.0,110640.0,0.49763243]
[1757020273199,0.39488572,110650.0,110640.0,0.49763243]
[1757020279289,0.39488572,110650.0,110640.0,0.49763243]
[1757020289999,0.02370292,110650.0,110640.0,0.49763243]
[1757020290191,0.39488572,110650.0,110640.0,0.49763243]
[1757020291463,0.02370292,110650.0,110640.0,0.49763243]
[1757020291671,0.39485598,110650.0,110640.0,0.49763243]
[1757020292563,0.02370292,110650.0,110640.0,0.86878549]
[1757020298304,0.02524515,110650.0,110640.0,0.86878549]
[1757020300092,0.02524515,110650.0,110640.0,0.49763243]
[1757020300245,0.02524515,110650.0,110640.0,0.86878549]
[1757020301011,0.02370292,110650.0,110640.0,0.86878549]
[1757020301741,0.02370292,110650.0,110640.0,0.49763243]
[1757020301952,0.02370292,110650.0,110640.0,0.86878549]
[1757020302703,0.02524515,110650.0,110640.0,0.86878549]
[1757020304865,0.02370292,110650.0,110640.0,0.86878549]
[1757020307106,0.02370292,110650.0,110640.0,0.16151599]
[1757020307107,0.39639821,110650.0,110640.0,0.16151599]
[1757020307326,0.57560609,110650.0,110640.0,0.31171599]
[1757020307565,0.59515962,110650.0,110640.0,0.31171599]
[1757020308531,0.59515962,110650.0,110640.0,0.49248243]
[1757020310355,0.59515962,110650.0,110640.0,0.49551243]
[1757020313238,0.57560609,110650.0,110640.0,0.49551243]
[1757020315181,0.20445303,110650.0,110640.0,0.31474599]
[1757020315382,0.57560609,110650.0,110640.0,0.49551243]
[1757020318108,0.57560609,110650.0,110640.0,0.34531243]
[1757020318309,0.57560609,110650.0,110640.0,0.16151599]
[1757020318516,0.57560609,110650.0,110640.0,0.31171599]
[1757020319402,0.20445303,110650.0,110640.0,0.49248243]
[1757020319627,0.57560609,110650.0,110640.0,0.49248243]
[1757020320208,0.57560609,110650.0,110640.0,0.49551243]
[1757020321947,0.20445303,110650.0,110640.0,0.49551243]
[1757020322164,0.57560609,110650.0,110640.0,0.49551243]
[1757020323163,0.94675915,110650.0,110640.0,0.49551243]
[1757020326437,0.94675915,110650.0,110640.0,0.49751243]
[1757020326964,0.76600904,110650.0,110640.0,0.49751243]
[1757020329623,0.94675915,110650.0,110640.0,0.49751243]
[1757020330632,0.76600904,110650.0,110640.0,0.49751243]
[1757020331362,0.02370292,110650.0,110640.0,0.49751243]
[1757020331574,0.76755127,110650.0,110640.0,0.49751243]
[1757020331812,0.76600904,110650.0,110640.0,0.49751243]
[1757020332173,0.94675915,110650.0,110640.0,0.49547243]
[1757020332377,0.94675915,110650.0,110640.0,0.49747243]
[1757020335553,0.94675915,110650.0,110640.0,0.16654599]
[1757020335698,0.94675915,110650.0,110640.0,0.31470599]
[1757020337232,0.96630913,110650.0,110640.0,0.31470599]
[1757020337939,0.96630913,110650.0,110640.0,0.31467599]
[1757020340323,0.96630913,110650.0,110640.0,0.31667599]
[1757020340464,0.96630913,110650.0,110640.0,0.16651599]
[1757020340769,0.96630913,110650.0,110640.0,0.31667599]
[1757020344013,0.96630913,110650.0,110640.0,0.49744243]
[1757020344613,0.59515607,110650.0,110640.0,0.49744243]
[1757020350321,0.22400301,110650.0,110640.0,0.49744243]
[1757020350520,0.59515607,110650.0,110640.0,0.49744243]
[1757020352123,0.22400301,110650.0,110640.0,0.49744243]
[1757020352301,0.59515607,110650.0,110640.0,0.49744243]
[1757020353378,0.22400301,110650.0,110640.0,0.49744243]
[1757020353590,0.5951973,110650.0,110640.0,0.49744243]
[1757020361482,0.5951973,110650.0,110640.0,0.34728243]
[1757020361682,0.5951973,110650.0,110640.0,0.49740243]
[1757020380271,0.22400301,110650.0,110640.0,0.49740243]
[1757020380497,0.5951973,110650.0,110640.0,0.49740243]
[1757020382485,0.0432529,110650.0,110640.0,0.49740243]
[1757020383145,0.04479513,110650.0,110640.0,0.49740243]
[1757020385189,0.22554524,110650.0,110640.0,0.49740243]
[1757020385396,0.22400301,110650.0,110640.0,0.49740243]
[1757020387449,0.5951973,110650.0,110640.0,0.49740243]
[1757020393255,0.22400301,110650.0,110640.0,0.49740243]
[1757020393473,0.5951973,110650.0,110640.0,0.49740243]
[1757020394520,0.22400301,110650.0,110640.0,0.49740243]
[1757020395478,0.22400301,110650.0,110640.0,0.34728243]
[1757020395659,0.22400301,110650.0,110640.0,0.49740243]
[1757020399533,0.5951973,110650.0,110640.0,0.49740243]
[1757020399974,0.5951973,110650.0,110640.0,0.16451599]
[1757020400215,0.5951973,110650.0,110640.0,0.31163599]
[1757020400448,0.5951973,110650.0,110640.0,0.16677599]
[1757020400639,0.5951973,110650.0,110640.0,0.31689599]
[1757020401593,0.5951973,110650.0,110640.0,0.31475599]
[1757020402324,0.5951973,110650.0,110640.0,0.31689599]
[1757020403233,0.5951973,110650.0,110640.0,0.07486]
[1757020403505,0.5951973,110650.0,110640.0,0.22498]
[1757020407991,0.22400301,110650.0,110640.0,0.22498]
[1757020408203,0.5951973,110650.0,110640.0,0.22498]
[1757020413587,0.59519968,110650.0,110640.0,0.22498]
[1757020417165,0.59520351,110650.0,110640.0,0.22498]
[1757020425254,0.22400684,110650.0,110640.0,0.22498]
[1757020425711,0.59520351,110650.0,110640.0,0.22498]
[1757020429318,0.22400684,110650.0,110640.0,0.22498]
[1757020429520,0.59520351,110650.0,110640.0,0.22498]
[1757020431308,0.22400684,110650.0,110640.0,0.22498]
[1757020431510,0.59520351,110650.0,110640.0,0.22498]
[1757020435726,0.22400684,110650.0,110640.0,0.22498]
[1757020435943,0.59520351,110650.0,110640.0,0.22498]
[1757020440284,0.6871195,110650.0,110640.0,0.0696]
[1757020440495,0.6871195,110650.0,110640.0,0.21968]
[1757020442890,0.31592283,110650.0,110640.0,0.21968]
[1757020443095,0.6871195,110650.0,110640.0,0.21968]
[1757020444030,0.31592283,110650.0,110640.0,0.21968]
[1757020444340,0.6871195,110650.0,110640.0,0.21968]
[1757020445256,0.6871195,110650.0,110640.0,0.0696]
[1757020445499,2.1549889,110650.0,110640.0,0.003]
[1757020445715,1.97233421,110650.0,110640.0,0.003]
[1757020445972,2.15567704,110650.0,110640.0,0.003]
[1757020446201,0.18079913,110620.0,110610.0,0.00309]
[1757020446416,0.57154961,110620.0,110610.0,0.09500599]
[1757020446846,0.59873309,110620.0,110610.0,0.09698599]
[1757020447621,0.96992976,110620.0,110610.0,0.24706599]
[1757020447822,0.96992976,110620.0,110610.0,0.24906599]
[1757020448053,0.96992976,110620.0,110610.0,0.25006599]
[1757020448221,0.95037595,110620.0,110610.0,0.25006599]
[1757020449355,0.95037595,110620.0,110610.0,0.09998599]
[1757020449592,1.04229194,110620.0,110610.0,0.003]
[1757020449775,1.40179025,110620.0,110610.0,0.003]
[1757020449994,1.42620069,110620.0,110610.0,0.15312]
[1757020450206,1.42620069,110620.0,110610.0,0.002]
[1757020450418,1.94751736,110620.0,110610.0,0.002]
[1757020450628,1.94751736,110620.0,110600.0,0.0666]
[1757020450629,0.18081547,110610.0,110600.0,0.0666]
[1757020450842,1.03462311,110610.0,110600.0,0.15012]
[1757020451953,1.03462311,110610.0,110600.0,0.15058875]
[1757020453117,0.29222977,110610.0,110600.0,0.15058875]
[1757020454588,0.63222977,110610.0,110600.0,0.15058875]
[1757020454946,0.65664021,110610.0,110600.0,0.15058875]
[1757020455449,0.68918746,110610.0,110600.0,0.00046875]
[1757020456273,0.69762327,110610.0,110600.0,0.00046875]
[1757020456991,0.71637789,110610.0,110600.0,0.00046875]
[1757020457401,0.72480855,110610.0,110600.0,0.00046875]
[1757020457852,0.88918992,110610.0,110600.0,0.00046875]
[1757020458101,0.92930308,110610.0,110600.0,0.00046875]
[1757020458584,0.95520913,110610.0,110600.0,0.00046875]
[1757020459466,0.93079869,110610.0,110600.0,0.00046875]
[1757020460195,1.07153556,110610.0,110600.0,0.00046875]
[1757020460426,1.09024712,110610.0,110600.0,0.00046875]
[1757020460914,1.04142624,110610.0,110600.0,0.00046875]
[1757020461208,2.15829324,110610.0,110600.0,0.00046875]
[1757020461428,2.22344262,110610.0,110600.0,0.00046875]
[1757020462596,0.18086453,110580.0,110570.0,0.03124]
[1757020462819,0.26079283,110580.0,110570.0,0.0313247]
[1757020463252,0.28798831,110580.0,110570.0,0.0313247]
[1757020463696,0.28798831,110580.0,110570.0,0.0333047]
[1757020464098,0.28798831,110580.0,110570.0,0.0363047]
[1757020464705,0.28798831,110580.0,110570.0,0.0081447]
[1757020465347,0.29640886,110580.0,110570.0,0.0071447]
[1757020465549,0.32875195,110580.0,110570.0,0.0051647]
[1757020465728,0.33785023,110580.0,110570.0,0.0051647]
[1757020465928,0.33785023,110580.0,110570.0,0.0031647]
[1757020466245,0.33785023,110580.0,110570.0,0.0041647]
[1757020466765,0.33785023,110580.0,110570.0,0.0031647]
[1757020466984,0.67785023,110580.0,110570.0,0.0010847]
[1757020467212,0.68660547,110580.0,110570.0,0.0010847]
[1757020467394,0.70324022,110580.0,110570.0,0.0010847]
[1757020468018,0.74364947,110580.0,110570.0,0.0010847]
[1757020468619,0.74355096,110580.0,110570.0,0.0010847]
[1757020469871,0.18089725,110560.0,110550.0,0.15328]
[1757020470111,0.30640021,110560.0,110550.0,0.15024687]
[1757020470342,0.32573763,110560.0,110550.0,0.15222687]
[1757020470559,0.35293851,110560.0,110550.0,0.15222687]
[1757020470808,0.35293851,110560.0,110550.0,0.15530687]
[1757020471130,0.35293851,110560.0,110550.0,0.15730687]
[1757020471377,0.32060187,110560.0,110550.0,0.15730687]
[1757020471799,0.32060187,110560.0,110550.0,0.15830687]
[1757020472283,0.33745031,110560.0,110550.0,0.15830687]
[1757020473126,0.33745031,110560.0,110550.0,0.00810687]
[1757020473324,0.28894535,110560.0,110550.0,0.00810687]
[1757020473559,0.29185328,110560.0,110550.0,0.00810687]
[1757020474363,0.34039793,110560.0,110550.0,0.00810687]
[1757020475005,0.31427407,110560.0,110550.0,0.00810687]
[1757020475335,0.28191097,110560.0,110550.0,0.00810687]
[1757020475729,0.28191097,110560.0,110550.0,0.00612687]
[1757020476315,0.62191097,110560.0,110550.0,0.00512687]
[1757020476535,0.62191097,110560.0,110550.0,0.00312687]
[1757020476723,0.71382696,110560.0,110550.0,0.00412687]
[1757020477897,0.66528231,110560.0,110550.0,0.00412687]
[1757020478512,0.66530722,110560.0,110550.0,0.00412687]
[1757020478931,0.66530722,110560.0,110550.0,0.00312687]
[1757020479471,0.66630722,110560.0,110550.0,0.00312687]
[1757020480045,0.66630722,110560.0,110550.0,4.687e-05]
[1757020480469,0.66630722,110560.0,110550.0,0.00297687]
[1757020482065,0.66630722,110560.0,110550.0,4.687e-05]
[1757020483158,0.66631195,110560.0,110550.0,4.687e-05]
[1757020483405,0.18092998,110540.0,110530.0,0.34023287]
[1757020483612,0.23805513,110540.0,110530.0,0.43418363]
[1757020484077,0.26525754,110540.0,110530.0,0.43418363]
[1757020484658,0.08432756,110540.0,110530.0,0.43518363]
[1757020484842,0.08586979,110540.0,110530.0,0.43518363]
[1757020485283,0.26679977,110540.0,110530.0,0.43518363]
[1757020485514,0.28473957,110540.0,110530.0,0.43811363]
[1757020486069,0.28473957,110540.0,110530.0,0.44011363]
[1757020488374,0.23606381,110540.0,110530.0,0.44011363]
[1757020488584,0.28479232,110540.0,110530.0,0.44011363]
[1757020489354,0.23606381,110540.0,110530.0,0.44011363]
[1757020489570,0.23608472,110540.0,110530.0,0.44011363]
[1757020490333,0.30098573,110540.0,110530.0,0.44011363]
[1757020490652,0.34918942,110540.0,110530.0,0.44011363]
[1757020490869,0.30099805,110540.0,110530.0,0.25012076]
[1757020491586,0.30099805,110540.0,110530.0,0.4310671]
[1757020492174,0.30099805,110540.0,110530.0,0.15836477]
[1757020493394,0.30099805,110540.0,110530.0,0.33931111]
[1757020496440,0.28494731,110540.0,110530.0,0.26590421]
[1757020496635,0.28494731,110540.0,110530.0,0.26785421]
[1757020497037,0.28691731,110540.0,110530.0,0.26785421]
[1757020497293,0.28986731,110540.0,110530.0,0.08690787]
[1757020497965,0.28986731,110540.0,110530.0,0.08495787]
[1757020498158,0.28986731,110540.0,110530.0,0.08690787]
[1757020498458,0.28986731,110540.0,110530.0,0.26785421]
[1757020498597,0.28691731,110540.0,110530.0,0.26785421]
[1757020498785,0.28986731,110540.0,110530.0,0.26785421]
[1757020498987,0.28691731,110540.0,110530.0,0.26785421]
[1757020500265,0.28494731,110540.0,110530.0,0.27078421]
[1757020501599,0.31753037,110540.0,110530.0,0.27078421]
[1757020501828,0.31754948,110540.0,110530.0,0.27078421]
[1757020502255,0.31754948,110540.0,110520.0,0.0004]
[1757020502256,0.18094634,110530.0,110520.0,0.0004]
[1757020502445,0.23301977,110530.0,110520.0,0.15098068]
[1757020502670,0.23498977,110530.0,110520.0,0.3338934]
[1757020502941,0.23498977,110530.0,110520.0,0.15293068]
[1757020503161,0.23498977,110530.0,110520.0,0.3338934]
[1757020503375,0.26864658,110530.0,110520.0,0.15293068]
[1757020503599,0.31545214,110530.0,110520.0,0.15393068]
[1757020503819,0.1325358,110530.0,110520.0,0.3378234]
[1757020504052,0.1325358,110530.0,110520.0,0.3398234]
[1757020504053,0.13407803,110530.0,110520.0,0.3398234]
[1757020504266,0.05315708,110530.0,110520.0,0.43173939]
[1757020504485,0.05469931,110530.0,110520.0,0.28129939]
[1757020504707,0.05469931,110530.0,110520.0,0.43209939]
[1757020506342,0.0287277,110530.0,110520.0,0.52551939]
[1757020507954,0.0287277,110530.0,110520.0,0.52571939]
[1757020508390,0.00922916,110530.0,110520.0,0.52571939]
[1757020508812,0.02720241,110540.0,110530.0,0.18094634]
[1757020509028,0.04674526,110540.0,110530.0,0.27286233]
[1757020509317,0.04674526,110540.0,110530.0,0.27806233]
[1757020509507,0.04674526,110540.0,110530.0,0.42906233]
[1757020510218,0.04674526,110540.0,110530.0,0.43006233]
[1757020510406,0.04674526,110540.0,110530.0,0.43106233]
[1757020511281,0.0585465,110560.0,110550.0,0.18091361]
[1757020511502,0.0439714,110560.0,110550.0,0.4290696]
[1757020511689,0.0439714,110560.0,110550.0,0.2780296]
[1757020511867,0.0460714,110560.0,110550.0,0.4260196]
[1757020512074,0.0439714,110560.0,110550.0,0.4291496]
[1757020512279,0.04674058,110560.0,110550.0,0.4291496]
[1757020512662,0.05697065,110560.0,110550.0,0.4291496]
[1757020512866,0.04774058,110560.0,110550.0,0.4558896]
[1757020513069,0.02054202,110560.0,110550.0,0.3714496]
[1757020513309,0.002,110560.0,110550.0,0.3714496]
[1757020513507,0.002,110560.0,110550.0,0.54362842]
[1757020513708,0.002,110560.0,110550.0,0.54418842]
[1757020513940,0.001,110560.0,110550.0,0.54418842]
[1757020514113,0.001,110560.0,110550.0,0.39238842]
[1757020514541,0.03632628,110580.0,110570.0,0.18088088]
[1757020514807,0.03632628,110580.0,110570.0,0.42499687]
[1757020515011,0.22236081,110580.0,110570.0,0.42499687]
[1757020515560,0.04149628,110580.0,110570.0,0.42499687]
[1757020515763,0.22390304,110580.0,110570.0,0.42499687]
[1757020516004,0.22236081,110580.0,110570.0,0.42499687]
[1757020517065,0.22236081,110580.0,110570.0,0.09191599]
[1757020517271,0.24185934,110580.0,110570.0,0.24419599]
[1757020517411,0.22236081,110580.0,110570.0,0.24419599]
[1757020517832,0.18088088,110570.0,110560.0,0.1808834]
[1757020518175,0.18605088,110570.0,110560.0,0.27294007]
[1757020518397,0.18605088,110570.0,110560.0,0.42522007]
[1757020518688,0.21324506,110570.0,110560.0,0.42522007]
[1757020519110,0.02719418,110570.0,110560.0,0.43042007]
[1757020519376,0.02719418,110570.0,110560.0,0.43142007]
[1757020519808,0.02719418,110570.0,110560.0,0.43242007]
[1757020520021,0.02929418,110570.0,110560.0,0.42929007]
[1757020520233,0.21478729,110570.0,110560.0,0.24633667]
[1757020520449,0.21324506,110570.0,110560.0,0.24633667]
[1757020520947,0.21324506,110570.0,110560.0,0.09405667]
[1757020521145,0.21324506,110570.0,110560.0,0.24633667]
[1757020521383,0.21324506,110570.0,110560.0,0.09405667]
[1757020521562,0.21324506,110570.0,110560.0,0.24629667]
[1757020522095,0.21324506,110570.0,110560.0,0.09405667]
[1757020522304,0.21324506,110570.0,110560.0,0.24629667]
[1757020524035,0.21324506,110570.0,110560.0,0.42719392]
[1757020525504,0.21324506,110570.0,110560.0,0.42926392]
[1757020526237,0.21017506,110570.0,110560.0,0.42926392]
[1757020526447,0.02719418,110570.0,110560.0,0.43239392]
[1757020527534,0.02873641,110570.0,110560.0,0.43239392]
[1757020528307,0.02719418,110570.0,110560.0,0.43239392]
[1757020528741,0.03390641,110570.0,110560.0,0.42926392]
[1757020528951,0.20961729,110570.0,110560.0,0.43239392]
[1757020529154,0.20807506,110570.0,110560.0,0.43239392]
[1757020529648,0.21324506,110570.0,110560.0,0.42719392]
[1757020529894,0.21324506,110570.0,110560.0,0.24629667]
[1757020530827,0.2535694,110570.0,110560.0,0.24629667]
[1757020531369,0.2535694,110570.0,110560.0,0.24836667]
[1757020531778,0.2535694,110570.0,110560.0,0.24633667]
[1757020531904,0.21324506,110570.0,110560.0,0.24633667]
[1757020533868,0.21324506,110570.0,110560.0,0.15446068]
[1757020534278,0.21324506,110570.0,110560.0,0.00214068]
[1757020534489,0.21324506,110570.0,110560.0,0.15442068]
[1757020536540,0.23276061,110570.0,110560.0,0.15442068]
[1757020536763,0.2750365,110570.0,110560.0,0.15442068]
[1757020541946,0.63939017,110570.0,110560.0,0.15542068]
[1757020542164,0.67196506,110570.0,110560.0,0.15542068]
[1757020543943,0.7121131,110570.0,110560.0,0.15542068]
[1757020547487,0.67953821,110570.0,110560.0,0.15542068]
[1757020547909,0.67953821,110570.0,110560.0,0.00214068]
[1757020548138,0.67953821,110570.0,110560.0,0.15526068]
[1757020553070,0.67632821,110570.0,110560.0,0.15735068]
[1757020553267,0.67954821,110570.0,110560.0,0.15526068]
[1757020554142,0.67954821,110570.0,110560.0,0.15514068]
[1757020555988,0.67954821,110570.0,110560.0,0.00214068]
[1757020556257,0.67954821,110570.0,110560.0,0.15522068]
[1757020561379,0.65519454,110570.0,110560.0,0.15522068]
[1757020562662,0.65519454,110570.0,110560.0,0.00214068]
[1757020564512,0.7121231,110570.0,110560.0,0.00214068]
[1757020568383,0.68776943,110570.0,110560.0,0.00214068]
[1757020568580,0.47260411,110570.0,110560.0,0.00214068]
[1757020568797,0.6453503,110570.0,110560.0,0.00214068]
[1757020569000,0.67255118,110570.0,110560.0,0.00214068]
[1757020570471,0.63027529,110570.0,110560.0,0.00214068]
[1757020572728,0.78291529,110570.0,110560.0,0.00214068]
[1757020574940,0.78283529,110570.0,110560.0,0.00214068]
[1757020575508,0.78283529,110570.0,110560.0,0.00413068]
[1757020575685,0.78283529,110570.0,110560.0,0.00214068]
[1757020576061,0.78283529,110570.0,110560.0,0.00413068]
[1757020576496,0.75839509,110570.0,110560.0,0.00413068]
[1757020576911,0.85031108,110570.0,110560.0,0.00413068]
[1757020578562,0.90732617,110570.0,110560.0,0.00413068]
[1757020578798,0.49788579,110570.0,110560.0,0.00413068]
[1757020579029,0.4059698,110570.0,110560.0,0.00413068]
[1757020580917,0.4059698,110570.0,110560.0,0.00214068]
[1757020581898,0.4026298,110570.0,110560.0,0.00413068]
[1757020582326,0.4056398,110570.0,110560.0,0.00214068]
[1757020585143,0.7456398,110570.0,110560.0,0.00214068]
[1757020585319,0.83755579,110570.0,110560.0,0.00214068]
[1757020586413,0.83705579,110570.0,110560.0,0.00214068]
[1757020587046,0.7451398,110570.0,110560.0,0.00214068]
[1757020589026,0.76958,110570.0,110560.0,0.00214068]
[1757020591155,0.76958,110570.0,110560.0,0.00413068]
[1757020592016,0.61413,110570.0,110560.0,0.00716068]
[1757020592201,0.76441,110570.0,110560.0,0.00716068]
[1757020592652,0.76461,110570.0,110560.0,0.00716068]
[1757020593091,0.85652599,110570.0,110560.0,0.00716068]
[1757020593905,0.70408599,110570.0,110560.0,0.00716068]
[1757020594101,0.61217,110570.0,110560.0,0.00716068]
[1757020595081,0.76461,110570.0,110560.0,0.00716068]
[1757020595490,0.61217,110570.0,110560.0,0.00716068]
[1757020595821,0.76461,110570.0,110560.0,0.00716068]
[1757020596249,0.67622275,110570.0,110560.0,0.00716068]
[1757020596451,0.86327764,110570.0,110560.0,0.00413068]
[1757020596990,0.83070275,110570.0,110560.0,0.00413068]
[1757020598103,0.67826275,110570.0,110560.0,0.00413068]
[1757020598347,0.83062275,110570.0,110560.0,0.00413068]